Workbook

Sheet Feuil1
B2: FABRICATION S.A. | E2: CONSTUCTIONS METALLIQUES
B4: FICHE DE SALAIRE | G4: mois :
B7: Nom : | D7: Dubois Fernand
B8: Avs no
B9: Nb enfants | D9: 3
B10: Tarif horaire | D10: 25 | E10: CHF
E12: Salaire net versé CHF | J12: =K43 -> 4,740.95
C15: Décompte
C17: Salaire | E17: Nb d'heures | G17: Tarif en %
C18: Heures normales | E18: 170 | F18: h. | G18: 100 | H18: % | K18: =E18*D10*G18/100 -> 4,250.00
C19: supplémentaires | E19: 10 | F19: h. | G19: 120 | H19: % | K19: =E19*D10*G19/100 -> 300.00
C20: supplémentaires | E20: 10 | F20: h. | G20: 120 | H20: % | K20: =E20*D10*G20/100 -> 300.00
C21: Salaire déterminant AVS | K21: =SUM(K18:K20) -> 4,850.00
C23: Allocations enfants | E23: 150 | K23: =D9*E23 -> 450.00
C24: supplémentaire
C26: Salaire brut | K26: =SUM(K21:K25) -> 5,300.00
C28: Charges sociales | E28: totales | G28: à charge | I28: s/CHF
C29: ./. Caisse de pens. | E29: 16 | F29: % | G29: 8 | H29: % | I29: =K21-1881.25 -> 2,968.75 | J29: =I29*G29/100 -> 237.50
C30: ./. Ass acc non prof | E30: 0.4 | F30: % | G30: 0.2 | H30: % | I30: =K21 -> 4,850.00 | J30: =I30*G30/100 -> 9.70
C31: ./. AVS/AI/APG | E31: 12.4 | F31: % | G31: 6.05 | H31: % | I31: =K21 -> 4,850.00 | J31: =I31*G31/100 -> 293.43
C32: ./. Ass chômage | E32: 0.38 | F32: % | G32: 0.38 | H32: % | I32: =K21 -> 4,850.00 | J32: =I32*G32/100 -> 18.43 | K32: =SUM(J29:J32) -> 559.06
C34: Autres déductions
K37: =K26-SUM(K32:K36) -> 4,740.95
C39: Frais de déplacements | E39: Nb de km | G39: Tarif
F40: km | H40: fr. | K40: =E40*G40 -> 0.00
F41: km | H41: fr. | K41: =E41*G41 -> 0.00
C42: Arrondi
C43: Montant net | J43: Net : | K43: =SUM(K37:K42) -> 4,740.95
B48: Lausanne, le

Sheet Vide
B2: FABRICATION S.A. | E2: CONSTUCTIONS METALLIQUES
B4: FICHE DE SALAIRE | G4: mois :
B7: Nom :
B8: Avs no
B9: Nb enfants
B10: Tarif horaire | E10: CHF
E12: Salaire net versé CHF
C15: Décompte
C17: Salaire | E17: Nb d'heures | G17: Tarif en %
C18: Heures normales | F18: h. | G18: 100 | H18: %
C19: supplémentaires | F19: h. | G19: 120 | H19: %
C20: supplémentaires | F20: h. | G20: 120 | H20: %
C21: Salaire déterminant AVS
C23: Allocations enfants
C24: supplémentaire
C26: Salaire brut
C28: Charges sociales | E28: totales | G28: à charge | I28: s/CHF
C29: ./. Caisse de pens. | F29: % | H29: %
C30: ./. Ass acc non prof | F30: % | H30: %
C31: ./. AVS/AI/APG | F31: % | H31: %
C32: ./. Ass chômage | F32: % | H32: %
C34: Autres déductions
C39: Frais de déplacements | E39: Nb de km | G39: Tarif
F40: km | H40: fr.
F41: km | H41: fr.
C42: Arrondi
C43: Montant net | J43: Net :
B48: Lausanne, le
